fUST/lending_fUST_20250519
["ID","MTS","AMOUNT","RATE_DAILY","PERIOD"]
[361639491,1747656655583,-430.0,0.00024383,4]
[361639492,1747656655593,-430.0,0.00024383,4]
[361639493,1747656655602,-567.63,0.00024383,4]
[361639494,1747656655611,-435.69,0.00024383,4]
[361639495,1747656655621,-430.0,0.00024383,4]
[361639496,1747656655630,-430.0,0.00024383,4]
[361639497,1747656655640,-280.0,0.00024383,4]
[361639498,1747656655649,-430.0,0.00024383,4]
[361639499,1747656655659,-430.0,0.00024383,4]
[361639500,1747656655668,-743.78,0.00024383,4]
[361639501,1747656655677,-572.61096598,0.00024383,4]
[361639502,1747656655686,-430.0,0.00024383,4]
[361639503,1747656655696,-430.0,0.00024383,4]
[361639504,1747656655706,-499.7,0.00024383,4]
[361639505,1747656655715,-430.0,0.00024383,4]
[361639506,1747656655724,-430.0,0.00024383,4]
[361639507,1747656655735,-430.0,0.00024383,4]
[361639508,1747656655744,-430.0,0.00024383,4]
[361639509,1747656655754,-240.13433819,0.00024383,4]
[361639510,1747656727910,2989.0,0.00024906,120]
[361639511,1747656764983,600.0,0.00026,120]
[361639512,1747656792308,1814.0,0.00024,120]
[361639514,1747656840882,600.0,0.00027,120]
[361639515,1747656935934,700.0,0.00027397,120]
[361639516,1747656936568,700.0,0.00027397,120]
[361639517,1747656936816,700.0,0.00027397,120]
[361639518,1747656937077,700.0,0.00027397,120]
[361639519,1747656937330,700.0,0.00027397,120]
[361639520,1747656937619,700.0,0.00027397,120]
[361639521,1747656937852,700.0,0.00027397,120]
[361639522,1747656938211,700.0,0.00027397,120]
[361639523,1747656938460,692.35090533,0.00027397,120]
[361639524,1747656993872,500.0,0.00024899,30]
[361639532,1747657434198,509.0,0.00027397,120]
[361639550,1747657709118,280.01363793,0.0001,2]
[361639552,1747657727581,10000.0,0.00011,2]
[361639554,1747657761478,10000.0,0.00011,2]
[361639614,1747657832331,-5000.0,0.00013292,2]
[361639616,1747657832341,-209.514107,0.00013699,2]
[361639618,1747657832350,-1082.41843121,0.000149,2]
[361639620,1747657832359,-369.60178198,0.00015,2]
[361639622,1747657832369,-1082.41843096,0.00015245,2]
[361639624,1747657832378,-1082.41843096,0.0001559,2]
[361639626,1747657832388,-1082.41843096,0.00015934,2]
[361639628,1747657832397,-300.0,0.00016278,2]
[361639630,1747657832406,-1082.41843096,0.00016279,2]
[361639632,1747657832415,-1082.41843096,0.00016624,2]
[361639634,1747657832425,-1082.41843096,0.00016969,2]
[361639636,1747657832434,-1082.41843096,0.00017314,2]
[361639638,1747657832443,-1082.41843096,0.00017659,2]
[361639640,1747657832452,-156.305,0.00018,2]
[361639642,1747657832465,-1082.41843096,0.00018003,2]
[361639644,1747657832474,-1082.41843096,0.00018348,2]
[361639646,1747657832483,-1082.41843096,0.00018693,2]
[361639648,1747657832493,-1082.41843096,0.00019038,2]
[361639650,1747657832503,-1082.41843096,0.00019383,2]
[361639652,1747657832512,-1082.41843096,0.00019728,2]
[361639654,1747657832522,-300.0,0.00019999,2]
[361639656,1747657832532,-480.0,0.00019999,2]
[361639658,1747657832541,-11350.20946463,0.0002,2]
[361639660,1747657832553,-1750.72605576,0.0002,2]
[361639663,1747657832564,-2750.0,0.0002,2]
[361639665,1747657832575,-1109.14178699,0.0002,2]
[361639667,1747657832586,-949.45157543,0.0002,2]
[361639669,1747657832595,-1082.41843096,0.00020072,2]
[361639671,1747657832604,-5093.2642178,0.00020155,2]
[361639673,1747657832614,-209.514107,0.00020187,2]
[361639675,1747657832624,-1082.41843096,0.00020417,3]
[361639677,1747657832634,-160.0,0.00020618,2]
[361639679,1747657832643,-422.59250115,0.00020618,2]
[361639681,1747657832652,-1082.41843096,0.00020762,3]
[361639683,1747657832661,-50000.0,0.00021037,2]
[361639685,1747657832670,-1082.41843096,0.00021107,4]
[361639688,1747657832680,-500.0,0.00021175,2]
[361639691,1747657832690,-500.0,0.00021175,2]
[361639693,1747657832700,-500.0,0.00021175,2]
[361639695,1747657832710,-500.0,0.00021175,2]
[361639697,1747657832720,-153.38454442,0.00021175,2]
[361639699,1747657832729,-500.0,0.00021175,2]
[361639701,1747657832739,-500.0,0.00021175,2]
[361639703,1747657832748,-500.0,0.00021175,2]
[361639705,1747657832757,-500.0,0.00021175,2]
[361639707,1747657832766,-500.0,0.00021175,2]
[361639709,1747657832775,-489.65003132,0.00021175,2]
[361639711,1747657832784,-500.0,0.00021175,2]
[361639713,1747657832793,-500.0,0.00021175,2]
[361639715,1747657832803,-500.0,0.00021175,2]
[361639717,1747657832812,-151.0,0.00021301,2]
[361639719,1747657832822,-1082.41843096,0.00021452,5]
[361639721,1747657832831,-500.0,0.00021657,2]
[361639723,1747657832841,-420.0,0.00021777,2]
[361639725,1747657832850,-1082.41843096,0.00021797,6]
[361639727,1747657832860,-1082.41843096,0.00022141,6]
[361639729,1747657832872,-1082.41843096,0.00022486,7]
[361639731,1747657832881,-174.52407843,0.0002267,2]
[361639733,1747657832890,-693.94701894,0.00022831,8]
[361639735,1747657832902,-388.47141202,0.00022831,8]
[361639737,1747657832912,-345.22748998,0.00023,2]
[361639740,1747657832922,-1082.41843096,0.00023176,8]
[361639741,1747657832932,-2200.0,0.00023224,2]
[361639743,1747657832941,-379.21671344,0.00023521,9]
[361639747,1747657832962,-703.20171752,0.00023521,9]
[361639749,1747657832972,-168.13076607,0.00023521,9]
[361639751,1747657832981,-151.92056122,0.00023635,2]
[361639753,1747657832990,-587.0,0.00023712,2]
[361639755,1747657833000,-2493.92740045,0.00023735,2]
[361639757,1747657833009,-1000.0,0.00023834,2]
[361639759,1747657833019,-1000.0,0.00023834,2]
[361639761,1747657833028,-1000.0,0.00023834,2]
[361639763,1747657833037,-1061.28,0.00023834,2]
[361639765,1747657833047,-204.86965282,0.00023835,4]
[361639766,1747657833056,-430.0,0.00023835,4]
[361639767,1747657833065,-400.0,0.00023835,4]
[361639768,1747657833074,-400.0,0.00023835,4]
[361639769,1747657833084,-430.0,0.00023835,4]
[361639770,1747657833093,-430.0,0.00023835,4]
[361639771,1747657833104,-400.0,0.00023835,4]
[361639772,1747657833113,-468.57,0.00023835,4]
[361639774,1747657833124,-400.0,0.00023835,4]
[361639775,1747657833133,-184.16496041,0.00023835,4]
[361639777,1747657833144,-430.0,0.00023835,4]
[361639778,1747657833154,-430.0,0.00023835,4]
[361639780,1747657833165,-430.0,0.00023835,4]
[361639781,1747657833174,-430.0,0.00023835,4]
[361639782,1747657833184,-430.0,0.00023835,4]
[361639783,1747657833194,-430.0,0.00023835,4]
[361639784,1747657833204,-200.0,0.00023835,4]
[361639785,1747657833213,-430.0,0.00023835,4]
[361639786,1747657833223,-430.0,0.00023835,4]
[361639787,1747657833232,-407.86332241,0.00023835,4]
[361639788,1747657833242,-400.0,0.00023835,4]
[361639789,1747657833251,-430.0,0.00023835,4]
[361639790,1747657833261,-206.49366621,0.00023835,4]
[361639791,1747657833270,-430.0,0.00023835,4]
[361639792,1747657833280,-430.0,0.00023835,4]
[361639793,1747657833289,-430.0,0.00023835,4]
[361639794,1747657833299,-430.0,0.00023835,4]
[361639795,1747657833309,-400.0,0.00023835,4]
[361639796,1747657833319,-400.0,0.00023835,4]
[361639797,1747657833328,-430.0,0.00023835,4]
[361639798,1747657833338,-430.0,0.00023835,4]
[361639799,1747657833348,-200.0,0.00023835,4]
[361639800,1747657833358,-400.0,0.00023835,4]
[361639801,1747657833367,-430.0,0.00023835,4]
[361639802,1747657833378,-430.0,0.00023835,4]
[361639803,1747657833388,-430.0,0.00023835,4]
[361639804,1747657833398,-430.0,0.00023835,4]
[361639805,1747657833407,-430.0,0.00023835,4]
[361639806,1747657833417,-349.94053301,0.00023835,4]
[361639807,1747657833426,-255.1,0.00023835,4]
[361639808,1747657833436,-400.0,0.00023835,4]
[361639809,1747657833446,-430.0,0.00023835,4]
[361639810,1747657833457,-430.0,0.00023835,4]
[361639811,1747657833468,-430.0,0.00023835,4]
[361639812,1747657833478,-416.68545219,0.00023835,4]
[361639813,1747657833487,-352.56,0.00023835,4]
[361639814,1747657833497,-430.0,0.00023835,4]
[361639815,1747657833506,-400.0,0.00023835,4]
[361639816,1747657833517,-430.0,0.00023835,4]
[361639817,1747657833526,-430.0,0.00023835,4]
[361639818,1747657833535,-157.27514836,0.00023835,4]
[361639819,1747657833545,-400.0,0.00023835,4]
[361639820,1747657833554,-430.0,0.00023835,4]
[361639821,1747657833564,-400.0,0.00023835,4]
[361639822,1747657833574,-430.0,0.00023835,4]
[361639823,1747657833584,-400.0,0.00023835,4]
[361639824,1747657833594,-400.0,0.00023835,4]
[361639825,1747657833604,-430.0,0.00023835,4]
[361639826,1747657833614,-400.0,0.00023835,4]
[361639827,1747657833626,-430.0,0.00023835,4]
[361639828,1747657833636,-430.0,0.00023835,4]
[361639829,1747657833647,-340.0,0.00023835,4]
[361639830,1747657833656,-430.0,0.00023835,4]
[361639831,1747657833666,-400.0,0.00023835,4]
[361639832,1747657833676,-400.0,0.00023835,4]
[361639833,1747657833686,-400.0,0.00023835,4]
[361639834,1747657833697,-430.0,0.00023835,4]
[361639835,1747657833707,-430.0,0.00023835,4]
[361639836,1747657833717,-183.26535169,0.00023835,4]
[361639837,1747657837135,10000.0,0.00011,2]
[361639844,1747657838254,-1809.83187469,0.00013159,2]
[361639845,1747657838266,-3190.16812531,0.00013159,2]
[361639846,1747657838276,-246.73464831,0.00023835,4]
[361639847,1747657838285,-430.0,0.00023835,4]
[361639848,1747657838294,-400.0,0.00023835,4]
[361639849,1747657838304,-400.0,0.00023835,4]
[361639850,1747657838313,-201.09960788,0.00023835,4]
[361639851,1747657838322,-506.46345419,0.00023835,4]
[361639852,1747657838331,-430.0,0.00023835,4]
[361639853,1747657838340,-167.06133193,0.00023835,4]
[361639854,1747657838349,-400.0,0.00023835,4]
[361639855,1747657838358,-430.0,0.00023835,4]
[361639856,1747657838368,-400.44372818,0.00023835,4]
[361639857,1747657838378,-203.85090846,0.00023835,4]
[361639858,1747657838387,-430.0,0.00023835,4]
[361639859,1747657838396,-430.0,0.00023835,4]
[361639860,1747657838405,-400.00000002,0.00023835,4]
[361639861,1747657838414,-503.12747248,0.00023835,4]
[361639862,1747657838423,-430.0,0.00023835,4]
[361639863,1747657838432,-400.00752111,0.00023835,4]
[361639864,1747657838441,-430.0,0.00023835,4]
[361639865,1747657838450,-338.50915751,0.00023835,4]
[361639866,1747657838462,-400.0,0.00023835,4]
[361639867,1747657838472,-430.0,0.00023835,4]
[361639868,1747657838481,-430.0,0.00023835,4]
[361639869,1747657838490,-430.0,0.00023835,4]
[361639870,1747657838499,-430.0,0.00023835,4]
[361639871,1747657838508,-430.0,0.00023835,4]
[361639872,1747657838517,-430.0,0.00023835,4]
[361639873,1747657838527,-430.0,0.00023835,4]
[361639874,1747657838536,-430.0,0.00023835,4]
[361639875,1747657838546,-430.0,0.00023835,4]
[361639876,1747657838555,-400.0,0.00023835,4]
[361639877,1747657838564,-400.57953115,0.00023835,4]
[361639878,1747657838574,-400.0,0.00023835,4]
[361639879,1747657838584,-400.0,0.00023835,4]
[361639880,1747657838593,-113.59099247,0.00023835,4]
[361639881,1747657838606,-286.40900753,0.00023835,4]
[361639882,1747657838615,-245.4782074,0.00023835,4]
[361639883,1747657838628,-32.6117926,0.00023835,4]
[361639884,1747657838638,-400.0,0.00023835,4]
[361639885,1747657838649,-430.0,0.00023835,4]
[361639886,1747657838658,-430.0,0.00023835,4]
[361639887,1747657838667,-400.0,0.00023835,4]
[361639888,1747657838677,-430.0,0.00023835,4]
[361639889,1747657838686,-430.0,0.00023835,4]
[361639890,1747657838696,-312.57191598,0.00023835,4]
[361639891,1747657838705,-430.0,0.00023835,4]
[361639892,1747657838714,-430.0,0.00023835,4]
[361639893,1747657838723,-430.0,0.00023835,4]
[361639894,1747657838733,-400.0,0.00023835,4]
[361639895,1747657838742,-430.0,0.00023835,4]
[361639896,1747657838751,-430.0,0.00023835,4]
[361639897,1747657838761,-400.0,0.00023835,4]
[361639898,1747657838770,-430.0,0.00023835,4]
[361639899,1747657838780,-430.0,0.00023835,4]
[361639900,1747657838790,-430.0,0.00023835,4]
[361639901,1747657838801,-430.0,0.00023835,4]
[361639902,1747657838810,-430.0,0.00023835,4]
[361639903,1747657838819,-430.0,0.00023835,4]
[361639904,1747657838829,-401.2892377,0.00023835,4]
[361639905,1747657838838,-400.0,0.00023835,4]
[361639906,1747657838848,-500.0,0.00023835,4]
[361639907,1747657838857,-430.0,0.00023835,4]
[361639908,1747657838866,-400.0,0.00023835,4]
[361639909,1747657838878,-430.0,0.00023835,4]
[361639910,1747657838887,-430.0,0.00023835,4]
[361639911,1747657838897,-430.0,0.00023835,4]
[361639912,1747657838907,-430.0,0.00023835,4]
[361639913,1747657838916,-435.53396256,0.00023835,4]
[361639914,1747657838925,-430.0,0.00023835,4]
[361639915,1747657838934,-430.0,0.00023835,4]
[361639916,1747657838943,-451.83,0.00023835,4]
[361639917,1747657838952,-430.0,0.00023835,4]
[361639918,1747657838961,-397.14145209,0.00023835,4]
[361639919,1747657838971,-400.0,0.00023835,4]
[361639920,1747657838980,-400.0,0.00023835,4]
[361639921,1747657838989,-430.0,0.00023835,4]
[361639922,1747657838998,-401.04192572,0.00023835,4]
[361639923,1747657839008,-430.0,0.00023835,4]
[361639924,1747657839017,-400.0,0.00023835,4]
[361639925,1747657839026,-430.0,0.00023835,4]
[361639926,1747657839035,-430.0,0.00023835,4]
[361639927,1747657839045,-430.0,0.00023835,4]
[361639928,1747657839054,-430.0,0.00023835,4]
[361639929,1747657839063,-311.05584239,0.00023835,4]
[361639930,1747657839072,-430.0,0.00023835,4]
[361639931,1747657839081,-400.0,0.00023835,4]
[361639932,1747657839091,-430.0,0.00023835,4]
[361639933,1747657839100,-400.0,0.00023835,4]
[361639934,1747657839109,-400.0,0.00023835,4]
[361639935,1747657839118,-430.0,0.00023835,4]
[361639936,1747657839127,-400.0,0.00023835,4]
[361639937,1747657839136,-400.0,0.00023835,4]
[361639938,1747657839146,-430.0,0.00023835,4]
[361639939,1747657839156,-430.0,0.00023835,4]
[361639940,1747657839165,-260.36402795,0.00023835,4]
[361639941,1747657839174,-430.0,0.00023835,4]
[361639942,1747657839184,-430.0,0.00023835,4]
[361639943,1747657839194,-430.0,0.00023835,4]
[361639944,1747657839203,-430.0,0.00023835,4]
[361639945,1747657839212,-430.0,0.00023835,4]
[361639946,1747657839222,-400.0,0.00023835,4]
[361639947,1747657839231,-400.0,0.00023835,4]
[361639948,1747657839241,-400.0,0.00023835,4]
[361639949,1747657839251,-430.0,0.00023835,4]
[361639950,1747657839261,-885.11,0.00023835,4]
[361639951,1747657839270,-401.09461568,0.00023835,4]
[361639952,1747657839280,-232.14,0.00023835,4]
[361639953,1747657839290,-430.0,0.00023835,4]
[361639954,1747657839300,-430.0,0.00023835,4]
[361639955,1747657839311,-400.88722967,0.00023835,4]
[361639956,1747657839321,-430.0,0.00023835,4]
[361639957,1747657839331,-430.0,0.00023835,4]
[361639958,1747657839340,-430.0,0.00023835,4]
[361639959,1747657839349,-430.0,0.00023835,4]
[361639960,1747657839359,-209.06674803,0.00023835,4]
[361639961,1747657839368,-400.0,0.00023835,4]
[361639962,1747657839378,-430.0,0.00023835,4]
[361639963,1747657839387,-430.0,0.00023835,4]
[361639964,1747657839397,-400.0,0.00023835,4]
[361639965,1747657839406,-443.01,0.00023835,4]
[361639966,1747657839416,-300.0,0.00023835,4]
[361639967,1747657839425,-695.21,0.00023835,4]
[361639968,1747657839435,-296.88581441,0.00023835,4]
[361639969,1747657839444,-548.21661082,0.00023835,4]
[361639970,1747657839454,-430.0,0.00023835,4]
[361639971,1747657839467,-430.0,0.00023835,4]
[361639972,1747657839476,-400.0,0.00023835,4]
[361639973,1747657839485,-400.0,0.00023835,4]
[361639974,1747657839494,-430.0,0.00023835,4]
[361639975,1747657839503,-400.0,0.00023835,4]
[361639976,1747657839512,-400.0,0.00023835,4]
[361639977,1747657839521,-430.0,0.00023835,4]
[361639978,1747657839531,-430.0,0.00023835,4]
[361639979,1747657839540,-430.0,0.00023835,4]
[361639980,1747657839550,-430.0,0.00023835,4]
[361639981,1747657839559,-392.89079228,0.00023835,4]
[361639982,1747657839568,-430.0,0.00023835,4]
[361639983,1747657839577,-430.0,0.00023835,4]
[361639984,1747657839587,-430.0,0.00023835,4]
[361639985,1747657839596,-430.0,0.00023835,4]
[361639986,1747657839605,-430.0,0.00023835,4]
[361639987,1747657839615,-400.0,0.00023835,4]
[361639988,1747657839624,-430.0,0.00023835,4]
[361639989,1747657839634,-430.0,0.00023835,4]
[361639990,1747657839643,-544.9,0.00023835,4]
[361639991,1747657839655,-430.0,0.00023835,4]
[361639992,1747657839665,-520.34951819,0.00023835,4]
[361639993,1747657839675,-430.0,0.00023835,4]
[361639994,1747657839686,-430.0,0.00023835,4]
[361639995,1747657839697,-430.0,0.00023835,4]
[361639996,1747657839706,-430.0,0.00023835,4]
[361639997,1747657839717,-430.0,0.00023835,4]
[361639998,1747657839727,-430.0,0.00023835,4]
[361639999,1747657839736,-430.0,0.00023835,4]
[361640000,1747657839745,-430.0,0.00023835,4]
[361640001,1747657839754,-400.0,0.00023835,4]
[361640002,1747657839764,-333.75415314,0.00023835,4]
[361640003,1747657839773,-430.0,0.00023835,4]
[361640004,1747657839782,-415.05185322,0.00023835,4]
[361640005,1747657839792,-171.86,0.00023835,4]
[361640006,1747657839801,-506.35665012,0.00023835,4]
[361640008,1747657839810,-400.0,0.00023835,4]
[361640009,1747657839820,-430.0,0.00023835,4]
[361640010,1747657839829,-236.43657015,0.00023835,4]
[361640011,1747657839838,-430.0,0.00023835,4]
[361640012,1747657839847,-430.0,0.00023835,4]
[361640013,1747657839857,-430.0,0.00023835,4]
[361640014,1747657839866,-400.0,0.00023835,4]
[361640015,1747657839876,-430.0,0.00023835,4]
[361640016,1747657839885,-430.0,0.00023835,4]
[361640017,1747657839894,-400.0,0.00023835,4]
[361640018,1747657839903,-430.0,0.00023835,4]
[361640019,1747657839912,-200.0,0.00023835,4]
[361640020,1747657839922,-400.0,0.00023835,4]
[361640021,1747657839931,-430.0,0.00023835,4]
[361640022,1747657839941,-430.0,0.00023835,4]
[361640023,1747657839951,-353.22003313,0.00023835,4]
[361640024,1747657839961,-430.0,0.00023835,4]
[361640025,1747657839970,-430.0,0.00023835,4]
[361640028,1747657839988,-430.0,0.00023835,4]
[361640029,1747657840000,-433.03383778,0.00023835,4]
[361640030,1747657840009,-430.0,0.00023835,4]
[361640031,1747657840019,-430.0,0.00023835,4]
[361640032,1747657840028,-430.0,0.00023835,4]
[361640033,1747657840038,-430.0,0.00023835,4]
[361640035,1747657840048,-430.0,0.00023835,4]
[361640037,1747657840058,-430.0,0.00023835,4]
[361640039,1747657840067,-430.0,0.00023835,4]
[361640041,1747657840077,-430.0,0.00023835,4]
[361640043,1747657840086,-430.0,0.00023835,4]
[361640046,1747657840096,-583.22,0.00023835,4]
[361640048,1747657840106,-430.0,0.00023835,4]
[361640050,1747657840115,-400.0,0.00023835,4]
[361640052,1747657840125,-430.0,0.00023835,4]
[361640054,1747657840134,-430.0,0.00023835,2]
[361640056,1747657840144,-190.0,0.00023835,4]
[361640058,1747657840154,-505.36244507,0.00023835,4]
[361640060,1747657840163,-190.0,0.00023835,4]
[361640062,1747657840173,-430.0,0.00023835,4]
[361640064,1747657840182,-430.0,0.00023835,4]
[361640066,1747657840191,-908.36,0.00023835,4]
[361640068,1747657840200,-430.0,0.00023835,4]
[361640070,1747657840210,-430.0,0.00023835,4]
[361640072,1747657840219,-430.0,0.00023835,4]
[361640074,1747657840229,-1697.44,0.00023835,4]
[361640076,1747657840238,-430.0,0.00023835,4]
[361640078,1747657840248,-430.0,0.00023835,4]
[361640080,1747657840258,-430.0,0.00023835,4]
[361640082,1747657840267,-430.0,0.00023835,4]
[361640084,1747657840280,-430.0,0.00023835,4]
[361640086,1747657840289,-430.0,0.00023835,4]
[361640088,1747657840298,-430.0,0.00023835,4]
[361640089,1747657840308,-402.60243514,0.00023835,4]
[361640090,1747657840317,-430.0,0.00023835,4]
[361640091,1747657840326,-430.0,0.00023835,4]
[361640092,1747657840336,-430.0,0.00023835,4]
[361640094,1747657840345,-430.0,0.00023835,4]
[361640095,1747657840355,-430.0,0.00023835,4]
[361640099,1747657840364,-500.0,0.00023835,4]
[361640101,1747657840374,-430.0,0.00023835,4]
[361640103,1747657840384,-430.0,0.00023835,4]
[361640119,1747657840533,-430.0,0.00023835,4]
[361640121,1747657840545,-430.0,0.00023835,4]
[361640124,1747657840554,-430.0,0.00023835,4]
[361640126,1747657840564,-430.0,0.00023835,4]
[361640128,1747657840573,-1166.52,0.00023835,4]
[361640130,1747657840582,-352.25224237,0.00023835,4]
[361640132,1747657840591,-430.0,0.00023835,4]
[361640133,1747657840600,-430.0,0.00023835,4]
[361640135,1747657840610,-500.0,0.00023835,4]
[361640137,1747657840619,-430.0,0.00023835,4]
[361640140,1747657840629,-430.0,0.00023835,4]
[361640142,1747657840639,-430.0,0.00023835,4]
[361640144,1747657840648,-430.0,0.00023835,4]
[361640146,1747657840657,-430.0,0.00023835,4]
[361640148,1747657840666,-430.0,0.00023835,4]
[361640150,1747657840676,-430.0,0.00023835,4]
[361640152,1747657840684,-430.0,0.00023835,4]
[361640154,1747657840693,-430.0,0.00023835,4]
[361640156,1747657840703,-388.35396439,0.00023835,4]
[361640158,1747657840712,-430.0,0.00023835,4]
[361640160,1747657840723,-430.0,0.00023835,4]
[361640162,1747657840732,-430.0,0.00023835,4]
[361640164,1747657840741,-430.0,0.00023835,4]
[361640166,1747657840750,-430.0,0.00023835,4]
[361640168,1747657840760,-1165.95,0.00023835,4]
[361640170,1747657840768,-430.0,0.00023835,4]
[361640172,1747657840777,-430.0,0.00023835,4]
[361640174,1747657840787,-430.0,0.00023835,4]
[361640176,1747657840796,-430.0,0.00023835,4]
[361640178,1747657840805,-430.0,0.00023835,4]
[361640180,1747657840814,-447.28,0.00023835,4]
[361640181,1747657840824,-430.0,0.00023835,4]
[361640184,1747657840834,-430.0,0.00023835,4]
[361640186,1747657840842,-430.0,0.00023835,4]
[361640188,1747657840852,-430.0,0.00023835,4]
[361640190,1747657840862,-430.0,0.00023835,4]
[361640191,1747657840871,-446.94,0.00023835,4]
[361640192,1747657840881,-5427.77,0.00023835,4]
[361640193,1747657840890,-430.0,0.00023835,4]
[361640194,1747657840900,-430.0,0.00023835,4]
[361640196,1747657840909,-430.0,0.00023835,4]
[361640198,1747657840918,-430.0,0.00023835,4]
[361640200,1747657840927,-430.0,0.00023835,4]
[361640202,1747657840937,-430.0,0.00023835,4]
[361640204,1747657840946,-850.71,0.00023835,4]
[361640206,1747657840955,-430.0,0.00023835,4]
[361640208,1747657840964,-430.0,0.00023835,4]
[361640210,1747657840974,-430.0,0.00023835,4]
[361640212,1747657840983,-430.0,0.00023835,4]
[361640214,1747657840992,-430.0,0.00023835,4]
[361640217,1747657841005,-430.0,0.00023835,4]
[361640219,1747657841015,-430.0,0.00023835,4]
[361640221,1747657841024,-430.0,0.00023835,4]
[361640223,1747657841033,-430.0,0.00023835,4]
[361640225,1747657841044,-430.0,0.00023835,4]
[361640227,1747657841053,-579.08,0.00023835,4]
[361640229,1747657841062,-250.5,0.00023835,4]
[361640231,1747657841071,-236.64366156,0.00023835,4]
[361640233,1747657841081,-430.0,0.00023835,4]
[361640235,1747657841090,-430.0,0.00023835,4]
[361640237,1747657841100,-430.0,0.00023835,4]
[361640239,1747657841109,-1388.08,0.00023835,4]
[361640241,1747657841119,-1260.08,0.00023835,4]
[361640243,1747657841129,-430.0,0.00023835,4]
[361640245,1747657841139,-2996.16,0.00023835,4]
[361640247,1747657841148,-430.0,0.00023835,4]
[361640249,1747657841157,-214.45790829,0.00023835,4]
[361640251,1747657841166,-791.61,0.00023835,4]
[361640253,1747657841176,-1239.9,0.00023835,4]
[361640255,1747657841185,-791.61,0.00023835,4]
[361640257,1747657841195,-791.61,0.00023835,4]
[361640259,1747657841204,-791.61,0.00023835,4]
[361640261,1747657841214,-791.61,0.00023835,4]
[361640263,1747657841223,-430.0,0.00023835,4]
[361640265,1747657841232,-791.61,0.00023835,4]
[361640267,1747657841241,-791.61,0.00023835,4]
[361640268,1747657841250,-791.61,0.00023835,4]
[361640270,1747657841259,-791.61,0.00023835,4]
[361640272,1747657841270,-791.61,0.00023835,4]
[361640273,1747657841279,-430.0,0.00023835,4]
[361640275,1747657841288,-1007.45,0.00023835,4]
[361640277,1747657841298,-893.23,0.00023835,4]
[361640279,1747657841307,-430.0,0.00023835,4]
[361640281,1747657841316,-430.0,0.00023835,4]
[361640283,1747657841325,-430.0,0.00023835,4]
[361640285,1747657841334,-1381.85,0.00023835,4]
[361640287,1747657841345,-430.0,0.00023835,4]
[361640289,1747657841354,-430.0,0.00023835,4]
[361640290,1747657841363,-430.0,0.00023835,4]
[361640291,1747657841373,-430.0,0.00023835,4]
[361640292,1747657841383,-430.0,0.00023835,4]
[361640293,1747657841392,-4863.71,0.00023835,4]
[361640294,1747657841402,-430.0,0.00023835,4]
[361640295,1747657841412,-529.6,0.00023835,4]
[361640296,1747657841421,-430.0,0.00023835,4]
[361640297,1747657841431,-430.0,0.00023835,4]
[361640298,1747657841441,-430.0,0.00023835,4]